fUSD/lending_fUSD_20250107
["ID","MTS","AMOUNT","RATE_DAILY","PERIOD"]
[348064074,1736290257347,-500.0,0.00010061,2]
[348064075,1736290257356,-1722.9,0.00010061,2]
[348064076,1736290257365,-1017.71,0.00010061,2]
[348064077,1736290257374,-1057.02,0.00010061,2]
[348064078,1736290257384,-986.89,0.00010061,2]
[348064079,1736290257394,-1492.9,0.00010061,2]
[348064080,1736290257403,-2039.88,0.00010061,2]
[348064081,1736290257412,-2144.34,0.00010061,2]
[348064082,1736290257422,-3859.14,0.00010061,2]
[348064083,1736290257431,-7732.88,0.00010061,2]
[348064084,1736290257440,-1506.91,0.00010062,2]
[348064085,1736290257450,-1132.07,0.00010062,2]
[348064086,1736290257460,-1084.9,0.00010062,2]
[348064087,1736290257469,-1201.89,0.00010062,2]
[348064088,1736290257478,-1151.81,0.00010062,2]
[348064089,1736290257488,-3337.89,0.00010062,2]
[348064090,1736290257497,-534.31,0.00010062,2]
[348064091,1736290257506,-1447.28,0.00010062,2]
[348064092,1736290257516,-1987.67,0.00010062,2]
[348064093,1736290257525,-1511.07,0.00010062,2]
[348064094,1736290257535,-2484.4,0.00010062,2]
[348064095,1736290257544,-1159.87,0.00010062,2]
[348064096,1736290257554,-1006.39,0.00010062,2]
[348064097,1736290257563,-3502.16,0.00010062,2]
[348064098,1736290257572,-2868.52,0.00010062,2]
[348064099,1736290257582,-500.0,0.00010063,2]
[348064100,1736290257592,-6299.49,0.00010098,2]
[348064101,1736290257601,-3900.82,0.00010098,2]
[348064102,1736290257611,-808.66,0.00010098,2]
[348064103,1736290257619,-825.89,0.00010098,2]
[348064104,1736290257629,-231.78,0.00010098,2]
[348064105,1736290257638,-1015.49,0.00010098,2]
[348064106,1736290257648,-1308.48,0.00010099,2]
[348064107,1736290257658,-1076.68,0.00010099,2]
[348064108,1736290257667,-1017.82,0.00010099,2]
[348064109,1736290257677,-1760.53,0.00010099,2]
[348064110,1736290257686,-1432.635477,0.00010099,2]
[348064111,1736290257696,-1608.66159,0.00010099,2]
[348064112,1736290257705,-1384.66,0.00010099,2]
[348064113,1736290257715,-1064.58,0.00010099,2]
[348064114,1736290257725,-2188.18,0.00010099,2]
[348064115,1736290257734,-3767.12,0.00010099,2]
[348064116,1736290257744,-2489.67,0.00010099,2]
[348064117,1736290257753,-1533.2,0.00010099,2]
[348064118,1736290257763,-500.0,0.00010099,2]
[348064119,1736290257772,-5480.17,0.00010099,2]
[348064120,1736290257781,-1272.31,0.00010099,2]
[348064121,1736290257791,-954.75,0.00010099,2]
[348064122,1736290257801,-1203.87,0.00010099,2]
[348064123,1736290257811,-500.0,0.00010099,2]
[348064124,1736290257820,-4080.99,0.00010099,2]
[348064125,1736290257830,-500.0,0.00010099,2]
[348064126,1736290257839,-1494.79,0.00010099,2]
[348064127,1736290257849,-1135.27904512,0.00010099,2]
[348064128,1736290257862,-555.07095488,0.00010099,2]
[348064129,1736290257871,-1663.51,0.00010099,2]
[348064130,1736290257880,-1240.60140689,0.00010099,2]
[348064131,1736290257892,-767.73859311,0.00010099,2]
[348064132,1736290257901,-1523.36,0.00010099,2]
[348064133,1736290257911,-1398.98,0.00010099,2]
[348064134,1736290257920,-609.94,0.00010099,2]
[348064135,1736290257930,-3256.31,0.00010099,2]
[348064136,1736290257939,-500.0,0.000101,2]
[348064137,1736290257948,-500.0,0.000101,2]
[348064138,1736290257958,-500.0,0.000101,2]
[348064139,1736290257968,-569.03,0.000101,2]
[348064140,1736290257977,-500.0,0.000101,2]
[348064141,1736290257987,-619.27,0.000101,2]
[348064142,1736290257996,-500.0,0.000101,2]
[348064143,1736290258005,-500.0,0.000101,2]
[348064144,1736290258015,-500.0,0.000101,2]
[348064145,1736290258024,-534.48,0.000101,2]
[348064146,1736290258033,-500.0,0.000101,2]
[348064147,1736290258043,-551.42,0.000101,2]
[348064148,1736290258052,-500.0,0.000101,2]
[348064149,1736290258062,-500.0,0.000101,2]
[348064150,1736290258072,-394.12075602,0.000101,2]
[348064151,1736290258081,-500.0,0.000101,2]
[348064152,1736290258090,-500.0,0.000101,2]
[348064153,1736290258100,-673.43,0.000101,2]
[348064154,1736290258109,-500.0,0.000101,2]
[348064155,1736290258118,-500.0,0.000101,2]
[348064156,1736290258127,-500.0,0.000101,2]
[348064157,1736290258137,-958.43,0.000101,2]
[348064158,1736290258146,-500.0,0.000101,2]
[348064159,1736290258155,-543.11,0.000101,2]
[348064160,1736290258164,-500.0,0.000101,2]
[348064161,1736290258173,-689.56,0.000101,2]
[348064162,1736290258183,-500.0,0.000101,2]
[348064163,1736290258194,-774.32,0.000101,2]
[348064164,1736290258204,-500.0,0.000101,2]
[348064165,1736290258213,-500.0,0.000101,2]
[348064166,1736290258223,-691.31,0.000101,2]
[348064167,1736290258232,-500.0,0.000101,2]
[348064168,1736290258241,-500.0,0.000101,2]
[348064169,1736290258251,-500.0,0.000101,2]
[348064170,1736290258261,-500.0,0.000101,2]
[348064171,1736290258270,-500.0,0.000101,2]
[348064172,1736290258280,-772.19,0.000101,2]
[348064173,1736290258290,-500.0,0.000101,2]
[348064174,1736290258299,-500.0,0.000101,2]
[348064175,1736290258309,-500.0,0.000101,2]
[348064176,1736290258319,-500.0,0.000101,2]
[348064177,1736290258329,-500.0,0.000101,2]
[348064178,1736290258339,-500.0,0.000101,2]
[348064179,1736290258354,-621.31,0.000101,2]
[348064180,1736290258364,-528.04,0.000101,2]
[348064181,1736290258374,-500.0,0.000101,2]
[348064182,1736290258384,-737.57,0.000101,2]
[348064183,1736290258392,-950.49,0.000101,2]
[348064184,1736290258401,-500.0,0.000101,2]
[348064185,1736290258411,-500.0,0.000101,2]
[348064186,1736290258421,-500.0,0.000101,2]
[348064187,1736290258430,-500.0,0.000101,2]
[348064188,1736290258440,-599.43,0.000101,2]
[348064189,1736290258449,-549.76,0.000101,2]
[348064190,1736290258459,-500.0,0.000101,2]
[348064191,1736290258469,-919.61,0.000101,2]
[348064192,1736290258478,-500.0,0.000101,2]
[348064193,1736290258488,-500.0,0.000101,2]
[348064194,1736290258498,-500.0,0.000101,2]
[348064195,1736290258509,-500.0,0.000101,2]
[348064196,1736290258518,-621.11,0.000101,2]
[348064197,1736290258528,-1305.48,0.000101,2]
[348064198,1736290258537,-500.0,0.000101,2]
[348064199,1736290258546,-554.96,0.000101,2]
[348064200,1736290258556,-548.01,0.000101,2]
[348064201,1736290258565,-614.86,0.000101,2]
[348064202,1736290258576,-734.14,0.000101,2]
[348064203,1736290258585,-500.0,0.000101,2]
[348064204,1736290258595,-763.53,0.000101,2]
[348064205,1736290258604,-500.0,0.000101,2]
[348064206,1736290258614,-564.05,0.000101,2]
[348064207,1736290258624,-738.71,0.000101,2]
[348064208,1736290258634,-500.0,0.000101,2]
[348064209,1736290258644,-500.0,0.000101,2]
[348064210,1736290258654,-500.0,0.000101,2]
[348064211,1736290258664,-698.98,0.000101,2]
[348064212,1736290258674,-384.50685346,0.000101,2]
[348064213,1736290258684,-592.18,0.000101,2]
[348064214,1736290258694,-500.0,0.000101,2]
[348064215,1736290258703,-654.74,0.000101,2]
[348064216,1736290258712,-500.0,0.000101,2]
[348064217,1736290258722,-547.02,0.000101,2]
[348064218,1736290258731,-500.0,0.000101,2]
[348064219,1736290258740,-500.0,0.000101,2]
[348064220,1736290258750,-500.0,0.000101,2]
[348064221,1736290258760,-500.0,0.000101,2]
[348064222,1736290258769,-500.0,0.000101,2]
[348064223,1736290258779,-500.0,0.000101,2]
[348064224,1736290258788,-500.0,0.000101,2]
[348064225,1736290258798,-500.0,0.000101,2]
[348064226,1736290258808,-671.03,0.000101,2]
[348064227,1736290258818,-500.0,0.000101,2]
[348064228,1736290258827,-500.0,0.000101,2]
[348064229,1736290258836,-500.0,0.000101,2]
[348064230,1736290258846,-500.0,0.000101,2]
[348064231,1736290258855,-500.0,0.000101,2]
[348064232,1736290258864,-500.0,0.000101,2]
[348064233,1736290258874,-663.29,0.000101,2]
[348064234,1736290258882,-895.43,0.000101,2]
[348064235,1736290258891,-500.0,0.000101,2]
[348064236,1736290258901,-500.0,0.000101,2]
[348064237,1736290258911,-563.55,0.000101,2]
[348064238,1736290258920,-500.0,0.000101,2]
[348064239,1736290258930,-508.79,0.000101,2]
[348064240,1736290258940,-653.72,0.000101,2]
[348064241,1736290258949,-500.0,0.000101,2]
[348064242,1736290258959,-593.7,0.000101,2]
[348064243,1736290258969,-500.0,0.000101,2]
[348064244,1736290258978,-500.0,0.000101,2]
[348064245,1736290258989,-623.39,0.000101,2]
[348064246,1736290258999,-1369.89,0.000101,2]
[348064247,1736290259009,-500.0,0.000101,2]
[348064248,1736290259019,-971.26,0.000101,2]
[348064249,1736290259028,-500.0,0.000101,2]
[348064250,1736290259038,-500.0,0.000101,2]
[348064251,1736290259048,-500.0,0.000101,2]
[348064252,1736290259058,-500.0,0.000101,2]
[348064253,1736290259067,-1522.1,0.000101,2]
[348064254,1736290259077,-1006.5,0.000101,2]
[348064255,1736290259086,-500.0,0.000101,2]
[348064256,1736290259252,-500.0,0.000101,2]
[348064257,1736290259300,-4588.54,0.000101,2]
[348064258,1736290259310,-552.23,0.000101,2]
[348064259,1736290259319,-500.0,0.000101,2]
[348064260,1736290259329,-500.0,0.000101,2]
[348064261,1736290259339,-627.12,0.000101,2]
[348064262,1736290259351,-500.0,0.000101,2]
[348064263,1736290259361,-3709.51,0.000101,2]
[348064264,1736290259370,-500.0,0.000101,2]
[348064265,1736290259379,-551.69,0.000101,2]
[348064266,1736290259390,-564.59,0.000101,2]
[348064267,1736290259400,-500.0,0.000101,2]
[348064268,1736290259409,-500.0,0.000101,2]
[348064269,1736290259419,-176.34013107,0.000101,2]
[348064270,1736290259429,-500.0,0.000101,2]
[348064271,1736290259439,-456.59533847,0.000101,2]
[348064272,1736290259449,-768.22,0.000101,2]
[348064273,1736290259459,-1607.22,0.000101,2]
[348064274,1736290259469,-500.0,0.000101,2]
[348064275,1736290259479,-520.1,0.000101,2]
[348064276,1736290259488,-1834.97,0.000101,2]
[348064277,1736290259498,-500.0,0.000101,2]
[348064278,1736290259507,-500.0,0.000101,2]
[348064279,1736290259516,-1189.26,0.000101,2]
[348064280,1736290259526,-578.09,0.000101,2]
[348064281,1736290259536,-537.41,0.000101,2]
[348064282,1736290259545,-170.98,0.00010137,2]
[348064283,1736290259555,-500.0,0.0001016,2]
[348064284,1736290259564,-852.0,0.00010195,2]
[348064285,1736290259574,-160.0,0.00010219,2]
[348064286,1736290259583,-797.72,0.00010233,2]
[348064287,1736290259593,-3528.04,0.00010233,2]
[348064288,1736290259603,-1276.55,0.00010233,2]
[348064289,1736290259613,-3057.55,0.00010233,2]
[348064290,1736290259622,-7935.21,0.00010233,2]
[348064291,1736290259632,-920.79,0.00010233,2]
[348064292,1736290259642,-1588.01,0.00010233,2]
[348064293,1736290259652,-2769.15,0.00010233,2]
[348064294,1736290259662,-500.0,0.00010233,2]
[348064295,1736290259671,-5146.02,0.00010233,2]
[348064296,1736290259681,-1860.59,0.00010233,2]
[348064297,1736290259690,-500.0,0.00010233,2]
[348064298,1736290259700,-2177.16,0.00010233,2]
[348064299,1736290259710,-1293.55,0.00010233,2]
[348064300,1736290259719,-4623.61,0.00010233,2]
[348064301,1736290259729,-2142.04,0.00010233,2]
[348064302,1736290259739,-1965.94,0.00010233,2]
[348064303,1736290259749,-2185.97,0.00010233,2]
[348064304,1736290259759,-946.04,0.00010233,2]
[348064305,1736290259769,-3004.29,0.00010233,2]
[348064306,1736290259779,-500.0,0.00010233,2]
[348064307,1736290259788,-587.38,0.00010233,2]
[348064308,1736290259798,-1147.28,0.00010233,2]
[348064309,1736290259807,-1015.36,0.00010233,2]
[348064310,1736290259817,-500.0,0.00010233,2]
[348064311,1736290259827,-1034.35,0.00010233,2]
[348064312,1736290259837,-564.54,0.00010233,2]
[348064313,1736290259847,-2088.64,0.00010233,2]
[348064314,1736290259857,-4683.38,0.00010272,2]
[348064315,1736290259866,-500.0,0.00010276,2]
[348064316,1736290259876,-500.0,0.00010276,2]
[348064317,1736290259885,-500.0,0.00010276,2]
[348064318,1736290259895,-505.84,0.00010276,2]
[348064319,1736290259904,-500.0,0.00010276,2]
[348064320,1736290259913,-500.0,0.00010276,2]
[348064321,1736290259923,-542.87,0.00010276,2]
[348064322,1736290259933,-500.0,0.00010276,2]
[348064323,1736290259943,-500.0,0.00010276,2]
[348064324,1736290259952,-500.0,0.00010276,2]
[348064325,1736290259961,-500.0,0.00010276,2]
[348064326,1736290259970,-500.0,0.00010276,2]
[348064327,1736290259980,-538.95,0.00010276,2]
[348064328,1736290259990,-500.0,0.00010276,2]
[348064329,1736290259999,-500.0,0.00010276,2]
[348064330,1736290260008,-500.0,0.00010276,2]
[348064331,1736290260018,-636.56,0.00010276,2]
[348064332,1736290260027,-500.0,0.00010276,2]
[348064333,1736290260039,-627.49,0.00010276,2]
[348064334,1736290260050,-717.74,0.00010276,2]
[348064335,1736290260060,-500.0,0.00010276,2]
[348064336,1736290260071,-500.0,0.00010276,2]
[348064337,1736290260081,-500.0,0.00010276,2]
[348064338,1736290260091,-500.0,0.00010276,2]
[348064339,1736290260101,-500.0,0.00010276,2]
[348064340,1736290260111,-918.23,0.00010277,2]
[348064341,1736290260120,-195.21238618,0.00010277,2]
[348064342,1736290260130,-500.0,0.00010277,2]
[348064343,1736290260140,-500.0,0.00010277,2]
[348064344,1736290260150,-1236.68,0.00010277,2]
[348064345,1736290260159,-889.86,0.00010277,2]
[348064346,1736290260169,-1169.42,0.00010277,2]
[348064347,1736290260178,-638.18,0.00010277,2]
[348064348,1736290260187,-526.57,0.00010277,2]
[348064349,1736290260197,-621.31,0.00010277,2]
[348064350,1736290260207,-500.0,0.00010277,2]
[348064351,1736290260216,-527.28,0.00010277,2]
[348064352,1736290260226,-953.02,0.00010277,2]
[348064353,1736290260236,-500.0,0.00010277,2]
[348064354,1736290260246,-500.44,0.00010277,2]
[348064355,1736290260256,-880.01,0.00010277,2]
[348064356,1736290260266,-500.0,0.00010277,2]
[348064357,1736290260275,-500.0,0.00010277,2]
[348064358,1736290260285,-500.0,0.00010277,2]
[348064359,1736290260295,-989.14,0.00010277,2]
[348064360,1736290260306,-619.42,0.00010277,2]
[348064361,1736290260316,-1041.11,0.00010277,2]
[348064362,1736290260325,-500.0,0.00010277,2]
[348064363,1736290260335,-500.0,0.00010277,2]
[348064364,1736290260344,-1191.41,0.00010277,2]
[348064365,1736290260357,-586.75,0.00010277,2]
[348064366,1736290260366,-1060.23,0.00010277,2]
[348064367,1736290260376,-500.0,0.00010277,2]
[348064368,1736290260385,-500.0,0.00010277,2]
[348064369,1736290260395,-660.8,0.00010277,2]
[348064370,1736290260404,-502.09,0.00010277,2]
[348064371,1736290260414,-954.95,0.00010277,2]
[348064372,1736290260423,-500.0,0.00010277,2]
[348064373,1736290260433,-512.5,0.00010277,2]
[348064374,1736290260442,-1110.2,0.00010277,2]
[348064375,1736290260452,-556.46,0.00010277,2]
[348064376,1736290260461,-689.24,0.00010277,2]
[348064377,1736290260471,-508.82,0.00010277,2]
[348064378,1736290260480,-762.82,0.00010277,2]
[348064379,1736290260490,-500.0,0.00010277,2]
[348064380,1736290260500,-500.0,0.00010277,2]
[348064381,1736290260510,-1030.35,0.00010277,2]
[348064382,1736290260519,-1081.71,0.00010277,2]
[348064383,1736290260529,-500.0,0.00010277,2]
[348064384,1736290260538,-605.58,0.00010277,2]
[348064385,1736290260548,-1178.59,0.00010277,2]
[348064386,1736290260558,-500.0,0.00010277,2]
[348064387,1736290260568,-500.0,0.00010277,2]
[348064388,1736290260578,-500.0,0.00010277,2]
[348064389,1736290260588,-1012.53,0.00010277,2]
[348064390,1736290260598,-1097.58,0.00010277,2]
[348064391,1736290260609,-1137.44,0.00010277,2]
[348064392,1736290260619,-500.0,0.00010277,2]
[348064393,1736290260630,-702.02,0.00010277,2]
[348064394,1736290260640,-701.45,0.00010277,2]
[348064395,1736290260650,-500.0,0.00010277,2]
[348064396,1736290260660,-962.96,0.00010277,2]
[348064397,1736290260670,-535.53,0.00010277,2]
[348064398,1736290260680,-923.41,0.00010277,2]
[348064399,1736290260690,-687.69,0.00010277,2]
[348064400,1736290260699,-1097.97,0.00010277,2]
[348064401,1736290260709,-981.83,0.00010277,2]
[348064402,1736290260719,-735.48,0.00010277,2]
[348064403,1736290260729,-1016.11,0.00010277,2]
[348064404,1736290260739,-1247.62,0.00010277,2]
[348064405,1736290260749,-701.64,0.00010277,2]
[348064406,1736290260759,-1347.69,0.00010277,2]
[348064407,1736290260769,-1306.47,0.00010277,2]
[348064408,1736290260780,-1214.38,0.00010277,2]
[348064409,1736290260789,-611.81,0.00010277,2]
[348064410,1736290260800,-815.66,0.00010277,2]
[348064411,1736290260809,-526.7,0.00010277,2]
[348064412,1736290260819,-923.53,0.00010277,2]
[348064413,1736290260829,-500.0,0.00010277,2]
[348064414,1736290260839,-716.03,0.00010277,2]
[348064415,1736290260849,-500.0,0.00010277,2]
[348064416,1736290260859,-531.39,0.0001028,2]
[348064417,1736290260869,-1000.0,0.0001028,2]
[348064418,1736290260879,-157.23,0.000103,2]
[348064419,1736290260888,-437.01,0.000103,2]
[348064420,1736290260898,-150.0,0.000103,2]
[348064421,1736290260907,-260.47,0.000103,2]
[348064422,1736290260917,-150.0,0.000103,2]
[348064423,1736290260926,-150.18,0.000103,2]
[348064424,1736290260937,-304.1,0.000103,2]
[348064425,1736290260946,-150.0,0.000103,2]
[348064426,1736290260955,-182.89,0.000103,2]
[348064427,1736290260965,-437.01,0.000103,2]
[348064428,1736290260975,-150.0,0.000103,2]
[348064429,1736290260984,-150.0,0.000103,2]
[348064430,1736290260996,-182.89,0.000103,2]
[348064431,1736290261006,-979.45,0.000103,2]
[348064432,1736290261015,-437.01,0.000103,2]
[348064433,1736290261026,-150.0,0.000103,2]
[348064434,1736290261036,-150.0,0.000103,2]
[348064435,1736290261046,-979.45,0.000103,2]
[348064436,1736290261056,-150.0,0.000103,2]
[348064437,1736290261066,-150.0,0.000103,2]
[348064438,1736290261076,-150.0,0.000103,2]
[348064439,1736290261086,-182.89,0.000103,2]
[348064440,1736290261096,-150.0,0.000103,2]
[348064441,1736290261106,-437.01,0.000103,2]
[348064442,1736290261115,-397.33,0.000103,2]
[348064443,1736290261125,-979.45,0.000103,2]
[348064444,1736290261136,-437.01,0.000103,2]
[348064445,1736290261147,-150.0,0.000103,2]
[348064446,1736290261156,-979.45,0.000103,2]
[348064447,1736290261165,-182.89,0.000103,2]
[348064448,1736290261175,-150.0,0.000103,2]
[348064449,1736290261184,-150.0,0.000103,2]
[348064450,1736290261194,-979.45,0.000103,2]
[348064451,1736290261204,-150.0,0.000103,2]
[348064452,1736290261214,-437.01,0.000103,2]
[348064453,1736290261223,-250.0,0.000103,2]
[348064454,1736290261233,-250.0,0.000103,2]
[348064455,1736290261242,-250.0,0.000103,2]
[348064456,1736290261251,-250.0,0.000103,2]
[348064457,1736290261261,-250.0,0.000103,2]
[348064458,1736290261270,-250.0,0.000103,2]
[348064459,1736290261279,-250.0,0.000103,2]
[348064460,1736290261289,-250.0,0.000103,2]
[348064461,1736290261299,-250.0,0.000103,2]
[348064462,1736290261309,-250.0,0.000103,2]
[348064463,1736290261319,-250.0,0.000103,2]
[348064464,1736290261329,-475.9,0.000103,2]
[348064465,1736290261338,-2014.0,0.00010319,2]
[348064466,1736290261349,-1267.0,0.00010319,2]
[348064467,1736290261359,-150.22,0.00010319,2]
[348064468,1736290261368,-566.0,0.00010319,2]
[348064469,1736290261378,-761.886,0.00010319,2]
[348064470,1736290261387,-1860.0,0.00010319,2]
[348064471,1736290261396,-916.0,0.00010319,2]
[348064472,1736290261406,-3776.0,0.00010319,2]
[348064473,1736290261415,-1258.0,0.00010319,2]
[348064474,1736290261424,-819.0,0.00010319,2]
[348064475,1736290261435,-3976.0,0.00010319,2]
[348064476,1736290261445,-537.0,0.00010319,2]
[348064477,1736290261457,-150.149,0.00010319,2]
[348064478,1736290261466,-3894.0,0.00010319,2]
[348064479,1736290261475,-150.0,0.00010319,2]
[348064480,1736290261485,-9619.0,0.00010319,2]
[348064481,1736290261495,-1173.0,0.00010319,2]
[348064482,1736290261504,-250.0,0.00010319,2]
[348064483,1736290261513,-173.633,0.00010319,2]
[348064484,1736290261523,-1103.0,0.00010319,2]
[348064485,1736290261532,-1976.46,0.00010335,2]
[348064486,1736290261543,-1990.46,0.00010335,2]
[348064487,1736290261552,-3103.77,0.00010335,2]
[348064488,1736290261562,-1629.53,0.00010335,2]
[348064489,1736290261571,-4968.16,0.00010335,2]
[348064490,1736290261581,-2271.31,0.00010335,2]
[348064491,1736290261590,-3568.89,0.00010335,2]
[348064492,1736290261600,-2074.43,0.00010335,2]
[348064493,1736290261609,-2137.71,0.00010335,2]
[348064494,1736290261619,-500.0,0.00010335,2]
[348064495,1736290261628,-844.52,0.00010335,2]
[348064496,1736290261638,-540.19,0.00010335,2]
[348064497,1736290261647,-500.0,0.00010335,2]
[348064498,1736290261657,-500.0,0.00010335,2]
[348064499,1736290261666,-1134.16,0.00010335,2]
[348064500,1736290261675,-500.0,0.00010335,2]
[348064501,1736290261685,-931.39,0.00010335,2]
[348064502,1736290261694,-500.0,0.00010335,2]
[348064503,1736290261703,-1148.48,0.00010335,2]
[348064504,1736290261713,-3650.94,0.00010335,2]
[348064505,1736290261723,-744.23,0.00010335,2]
[348064506,1736290261732,-644.52,0.00010335,2]
[348064507,1736290261742,-1042.38,0.00010335,2]
[348064508,1736290261752,-685.5,0.00010335,2]
[348064509,1736290261761,-500.0,0.00010335,2]
[348064510,1736290261771,-702.86,0.00010335,2]
[348064511,1736290261780,-1956.11,0.00010335,2]
[348064512,1736290261790,-500.0,0.00010335,2]
[348064513,1736290261799,-1214.17,0.00010335,2]
[348064514,1736290261808,-782.25,0.00010335,2]
[348064515,1736290261818,-1257.82,0.00010335,2]
[348064516,1736290261827,-500.0,0.00010335,2]
[348064517,1736290261836,-1351.8,0.00010335,2]
[348064518,1736290261846,-1450.67,0.00010335,2]
[348064519,1736290261855,-500.0,0.00010335,2]
[348064520,1736290261865,-577.82,0.00010335,2]
[348064521,1736290261874,-1502.49,0.00010335,2]
[348064522,1736290261883,-500.0,0.00010335,2]
[348064523,1736290261893,-940.74,0.00010335,2]
[348064524,1736290261903,-678.64,0.00010335,2]
[348064525,1736290261912,-500.0,0.00010335,2]
[348064526,1736290261921,-500.0,0.00010335,2]
[348064527,1736290261931,-500.0,0.00010335,2]
[348064528,1736290261940,-1722.9,0.00010335,2]
[348064529,1736290261949,-1017.71,0.00010335,2]
[348064530,1736290261959,-1057.02,0.00010335,2]
[348064531,1736290261968,-986.89,0.00010335,2]
[348064532,1736290261977,-1492.9,0.00010335,2]
[348064533,1736290261986,-2039.88,0.00010335,2]
[348064534,1736290261996,-2144.34,0.00010335,2]
[348064535,1736290262005,-3859.14,0.00010335,2]
[348064536,1736290262014,-7732.88,0.00010335,2]
[348064537,1736290262023,-150.45,0.00010335,2]
[348064538,1736290262032,-1506.91,0.00010336,2]
[348064539,1736290262042,-1132.07,0.00010336,2]
[348064540,1736290262051,-1201.89,0.00010336,2]
[348064541,1736290262061,-1151.81,0.00010336,2]
[348064542,1736290262070,-3337.89,0.00010336,2]
[348064543,1736290262079,-534.31,0.00010336,2]
[348064544,1736290262089,-1447.28,0.00010336,2]
[348064545,1736290262098,-1987.67,0.00010336,2]
[348064546,1736290262107,-1511.07,0.00010336,2]
[348064547,1736290262117,-2484.4,0.00010336,2]
[348064548,1736290262126,-1159.87,0.00010336,2]
[348064549,1736290262136,-1006.39,0.00010336,2]
[348064550,1736290262145,-3502.16,0.00010336,2]
[348064551,1736290262156,-2868.52,0.00010336,2]
[348064552,1736290262166,-490.67,0.00010337,2]
[348064553,1736290262175,-500.0,0.00010337,2]
[348064554,1736290262184,-208.803,0.0001035,2]
[348064555,1736290262193,-500.0,0.00010372,2]
[348064556,1736290262202,-3611.49056671,0.00010372,2]
[348064557,1736290262219,-2687.99943329,0.00010372,2]
[348064558,1736290262229,-3900.82,0.00010372,2]
[348064559,1736290262238,-808.66,0.00010372,2]
[348064560,1736290262248,-825.89,0.00010372,2]
[348064561,1736290262258,-1015.49,0.00010372,2]
[348064562,1736290262269,-500.0,0.00010373,2]
[348064563,1736290262278,-500.0,0.00010373,2]
[348064564,1736290262287,-500.0,0.00010373,2]
[348064565,1736290262296,-569.03,0.00010373,2]
[348064566,1736290262305,-500.0,0.00010373,2]
[348064567,1736290262315,-619.27,0.00010373,2]
[348064568,1736290262324,-500.0,0.00010373,2]
[348064569,1736290262333,-381.70973873,0.00010373,2]
[348064570,1736290262342,-500.0,0.00010373,2]
[348064571,1736290262354,-534.48,0.00010373,2]
[348064572,1736290262363,-500.0,0.00010373,2]
[348064573,1736290262372,-551.42,0.00010373,2]